fUSD/lending_fUSD_20240508
["ID","MTS","AMOUNT","RATE_DAILY","PERIOD"]
[326657884,1715203846960,-500.0,0.00027397,2]
[326657885,1715203846970,-500.0,0.00027397,2]
[326657886,1715203846980,-513.58436381,0.00027397,2]
[326657887,1715203846989,-500.0,0.00027397,2]
[326657888,1715203846999,-328.0,0.00027397,2]
[326657889,1715203847009,-500.0,0.00027397,2]
[326657890,1715203847019,-806.81,0.00027397,2]
[326657891,1715203847028,-1631.76,0.00027397,2]
[326657892,1715203847038,-500.0,0.00027397,2]
[326657893,1715203847048,-500.0,0.00027397,2]
[326657894,1715203847058,-500.0,0.00027397,2]
[326657895,1715203847067,-500.0,0.00027397,2]
[326657896,1715203847076,-500.0,0.00027397,2]
[326657897,1715203847086,-500.0,0.00027397,2]
[326657898,1715203847095,-512.16,0.00027397,2]
[326657899,1715203847105,-500.0,0.00027397,2]
[326657900,1715203847116,-500.0,0.00027397,2]
[326657901,1715203847126,-500.0,0.00027397,2]
[326657902,1715203847135,-507.36058911,0.00027397,2]
[326657903,1715203847144,-251.4,0.00027397,2]
[326657904,1715203847154,-500.0,0.00027397,2]
[326657905,1715203847163,-500.0,0.00027397,2]
[326657906,1715203847173,-231.57,0.00027397,2]
[326657907,1715203847183,-578.73,0.00027397,2]
[326657908,1715203847192,-1520.86,0.00027397,2]
[326657909,1715203847203,-500.0,0.00027397,2]
[326657910,1715203847213,-1381.31,0.00027397,2]
[326657911,1715203847223,-500.0,0.00027397,2]
[326657912,1715203847233,-500.0,0.00027397,2]
[326657913,1715203847243,-500.0,0.00027397,2]
[326657914,1715203847254,-500.0,0.00027397,2]
[326657915,1715203847263,-500.0,0.00027397,2]
[326657916,1715203847273,-500.0,0.00027397,2]
[326657917,1715203847283,-1761.26,0.00027397,2]
[326657918,1715203847292,-500.0,0.00027397,2]
[326657919,1715203847302,-500.0,0.00027397,2]
[326657920,1715203847311,-806.21,0.00027397,2]
[326657921,1715203847321,-500.0,0.00027397,2]
[326657922,1715203847332,-1415.55,0.00027397,2]
[326657923,1715203847341,-1652.92,0.00027397,2]
[326657924,1715203847351,-500.0,0.00027397,2]
[326657925,1715203847361,-868.67,0.00027397,2]
[326657926,1715203847371,-1336.54,0.00027397,2]
[326657927,1715203847380,-500.0,0.00027397,2]
[326657928,1715203847389,-500.0,0.00027397,2]
[326657929,1715203847398,-693.71,0.00027397,2]
[326657930,1715203847408,-641.76,0.00027397,2]
[326657931,1715203847417,-500.0,0.00027397,2]
[326657932,1715203847426,-500.0,0.00027397,2]
[326657933,1715203847435,-500.0,0.00027397,2]
[326657934,1715203847445,-500.0,0.00027397,2]
[326657935,1715203847454,-500.0,0.00027397,2]
[326657936,1715203847464,-500.0,0.00027397,2]
[326657937,1715203847473,-500.0,0.00027397,2]
[326657938,1715203847482,-500.0,0.00027397,2]
[326657939,1715203847491,-500.0,0.00027397,2]
[326657940,1715203847501,-500.0,0.00027397,2]
[326657941,1715203847512,-500.0,0.00027397,2]
[326657942,1715203847521,-500.0,0.00027397,2]
[326657943,1715203847531,-500.0,0.00027397,2]
[326657944,1715203847540,-611.92,0.00027397,2]
[326657945,1715203847549,-500.0,0.00027397,2]
[326657946,1715203847558,-500.0,0.00027397,2]
[326657947,1715203847567,-500.0,0.00027397,2]
[326657948,1715203847577,-500.0,0.00027397,2]
[326657949,1715203847586,-500.0,0.00027397,2]
[326657950,1715203847595,-500.0,0.00027397,2]
[326657951,1715203847605,-1060.31,0.00027397,2]
[326657952,1715203847614,-500.0,0.00027397,2]
[326657953,1715203847623,-150.0,0.00027397,2]
[326657954,1715203847634,-500.0,0.00027397,2]
[326657955,1715203847643,-500.0,0.00027397,2]
[326657956,1715203847653,-1982.77,0.00027397,2]
[326657957,1715203847662,-500.0,0.00027397,2]
[326657958,1715203847671,-500.0,0.00027397,2]
[326657959,1715203847681,-500.0,0.00027397,2]
[326657960,1715203847690,-500.0,0.00027397,2]
[326657961,1715203847700,-500.0,0.00027397,2]
[326657962,1715203847708,-500.0,0.00027397,2]
[326657963,1715203847718,-500.0,0.00027397,2]
[326657964,1715203847727,-585.32,0.00027397,2]
[326657965,1715203847736,-500.0,0.00027397,2]
[326657966,1715203847745,-500.0,0.00027397,2]
[326657967,1715203847755,-500.0,0.00027397,2]
[326657968,1715203847764,-500.0,0.00027397,2]
[326657969,1715203847778,-500.0,0.00027397,2]
[326657970,1715203847787,-500.0,0.00027397,2]
[326657971,1715203847798,-500.0,0.00027397,2]
[326657972,1715203847807,-500.0,0.00027397,2]
[326657973,1715203847818,-500.0,0.00027397,2]
[326657974,1715203847827,-500.0,0.00027397,2]
[326657975,1715203847836,-1042.65,0.00027397,2]
[326657976,1715203847845,-500.0,0.00027397,2]
[326657977,1715203847857,-500.0,0.00027397,2]
[326657978,1715203847866,-2968.4,0.00027397,2]
[326657979,1715203847875,-759.93,0.00027397,2]
[326657980,1715203847884,-500.0,0.00027397,2]
[326657981,1715203847893,-500.0,0.00027397,2]
[326657982,1715203847903,-500.0,0.00027397,2]
[326657983,1715203847911,-2457.45,0.00027397,2]
[326657984,1715203847921,-786.56,0.00027397,2]
[326657985,1715203847931,-500.0,0.00027397,2]
[326657986,1715203847940,-500.0,0.00027397,2]
[326657987,1715203847950,-502.61,0.00027397,2]
[326657988,1715203847959,-686.85,0.00027397,2]
[326657989,1715203847968,-500.0,0.00027397,2]
[326657990,1715203847976,-500.0,0.00027397,2]
[326657991,1715203847986,-500.0,0.00027397,2]
[326657992,1715203847995,-500.0,0.00027397,2]
[326657993,1715203848006,-500.0,0.00027397,2]
[326657994,1715203848015,-500.0,0.00027397,2]
[326657995,1715203848024,-508.25,0.00027397,2]
[326657996,1715203848033,-548.38,0.00027397,2]
[326657997,1715203848042,-500.0,0.00027397,2]
[326657998,1715203848052,-710.7,0.00027397,2]
[326657999,1715203848061,-500.0,0.00027397,2]
[326658000,1715203848070,-1482.02,0.00027397,2]
[326658001,1715203848079,-541.68,0.00027397,2]
[326658002,1715203848088,-500.0,0.00027397,2]
[326658003,1715203848100,-500.0,0.00027397,2]
[326658004,1715203848110,-500.0,0.00027397,2]
[326658005,1715203848119,-500.0,0.00027397,2]
[326658006,1715203848129,-2091.76,0.00027397,2]
[326658007,1715203848139,-500.0,0.00027397,2]
[326658008,1715203848148,-709.87,0.00027397,2]
[326658009,1715203848158,-500.0,0.00027397,2]
[326658010,1715203848168,-500.0,0.00027397,2]
[326658011,1715203848177,-500.0,0.00027397,2]
[326658012,1715203848187,-500.0,0.00027397,2]
[326658013,1715203848196,-500.0,0.00027397,2]
[326658014,1715203848205,-500.0,0.00027397,2]
[326658015,1715203848214,-1883.5,0.00027397,2]
[326658016,1715203848224,-1413.54,0.00027397,2]
[326658017,1715203848233,-500.0,0.00027397,2]
[326658018,1715203848243,-500.0,0.00027397,2]
[326658019,1715203848252,-8200.76,0.00027397,2]
[326658020,1715203848261,-284.42,0.00027397,2]
[326658021,1715203848271,-500.0,0.00027397,2]
[326658022,1715203848280,-628.08,0.00027397,2]
[326658023,1715203848289,-500.0,0.00027397,2]
[326658024,1715203848299,-511.64,0.00027397,2]
[326658025,1715203848308,-500.0,0.00027397,2]
[326658026,1715203848317,-500.0,0.00027397,2]
[326658027,1715203848326,-500.0,0.00027397,2]
[326658028,1715203848335,-500.0,0.00027397,2]
[326658029,1715203848345,-500.0,0.00027397,2]
[326658030,1715203848354,-500.0,0.00027397,2]
[326658031,1715203848362,-500.0,0.00027397,2]
[326658032,1715203848371,-500.0,0.00027397,2]
[326658033,1715203848381,-500.0,0.00027397,2]
[326658034,1715203848390,-500.0,0.00027397,2]
[326658035,1715203848399,-868.11,0.00027397,2]
[326658036,1715203848408,-537.89,0.00027397,2]
[326658037,1715203848417,-500.0,0.00027397,2]
[326658038,1715203848427,-500.0,0.00027397,2]
[326658039,1715203848436,-151.75982088,0.00027397,2]
[326658040,1715203848445,-906.89,0.00027397,2]
[326658041,1715203848455,-500.0,0.00027397,2]
[326658042,1715203848464,-500.0,0.00027397,2]
[326658043,1715203848474,-7185.51,0.00027397,2]
[326658044,1715203848483,-500.0,0.00027397,2]
[326658045,1715203848492,-500.0,0.00027397,2]
[326658046,1715203848501,-500.0,0.00027397,2]
[326658047,1715203848510,-500.0,0.00027397,2]
[326658048,1715203848520,-500.0,0.00027397,2]
[326658049,1715203848529,-1654.0,0.00027397,2]
[326658050,1715203848538,-1267.96,0.00027397,2]
[326658051,1715203848588,-533.64,0.00027397,2]
[326658052,1715203848598,-847.41,0.00027397,2]
[326658053,1715203848607,-500.0,0.00027397,2]
[326658054,1715203848617,-500.0,0.00027397,2]
[326658055,1715203848626,-500.0,0.00027397,2]
[326658056,1715203848635,-500.0,0.00027397,2]
[326658057,1715203848644,-500.0,0.00027397,2]
[326658058,1715203848653,-500.0,0.00027397,2]
[326658059,1715203848663,-1494.66,0.00027397,2]
[326658060,1715203848672,-500.0,0.00027397,2]
[326658061,1715203848681,-580.72,0.00027397,2]
[326658062,1715203848689,-500.0,0.00027397,2]
[326658063,1715203848699,-3137.64,0.00027397,2]
[326658064,1715203848708,-500.0,0.00027397,2]
[326658065,1715203848719,-500.0,0.00027397,2]
[326658066,1715203848728,-500.0,0.00027397,2]
[326658067,1715203848737,-177.19,0.00027397,2]
[326658068,1715203848746,-500.0,0.00027397,2]
[326658069,1715203848759,-500.0,0.00027397,2]
[326658070,1715203848768,-1438.29,0.00027397,2]
[326658071,1715203848781,-566.98,0.00027397,2]
[326658072,1715203848790,-500.0,0.00027397,2]
[326658073,1715203848800,-500.0,0.00027397,2]
[326658074,1715203848810,-500.0,0.00027397,2]
[326658075,1715203848819,-1633.85,0.00027397,2]
[326658076,1715203848830,-500.0,0.00027397,2]
[326658077,1715203848839,-500.0,0.00027397,2]
[326658078,1715203848848,-500.0,0.00027397,2]
[326658079,1715203848860,-232.13,0.00027397,2]
[326658080,1715203848869,-500.0,0.00027397,2]
[326658081,1715203848878,-1333.5,0.00027397,2]
[326658082,1715203848887,-499.96,0.00027397,2]
[326658083,1715203848896,-1236.15,0.00027397,2]
[326658084,1715203848906,-500.0,0.00027397,2]
[326658085,1715203848915,-4270.12,0.00027397,2]
[326658086,1715203848924,-768.65,0.00027397,2]
[326658087,1715203848933,-500.0,0.00027397,2]
[326658088,1715203848943,-500.0,0.00027397,2]
[326658089,1715203848953,-500.0,0.00027397,2]
[326658090,1715203848964,-500.0,0.00027397,2]
[326658091,1715203848973,-521.98,0.00027397,2]
[326658092,1715203848982,-2357.85,0.00027397,2]
[326658093,1715203848992,-500.0,0.00027397,2]
[326658094,1715203849001,-634.41,0.00027397,2]
[326658095,1715203849010,-2933.45,0.00027397,2]
[326658096,1715203849019,-500.0,0.00027397,2]
[326658097,1715203849029,-500.0,0.00027397,2]
[326658098,1715203849038,-500.0,0.00027397,2]
[326658099,1715203849047,-2762.11,0.00027397,2]
[326658100,1715203849057,-3285.2,0.00027397,2]
[326658101,1715203849066,-1312.6,0.00027397,2]
[326658102,1715203849075,-3208.75,0.00027397,2]
[326658103,1715203849084,-500.0,0.00027397,2]
[326658104,1715203849094,-500.0,0.00027397,2]
[326658105,1715203849103,-843.33,0.00027397,2]
[326658106,1715203849113,-500.0,0.00027397,2]
[326658107,1715203849123,-500.0,0.00027397,2]
[326658108,1715203849132,-500.0,0.00027397,2]
[326658109,1715203849141,-500.0,0.00027397,2]
[326658110,1715203849151,-1662.41,0.00027397,2]
[326658111,1715203849160,-201.28483837,0.00027397,2]
[326658112,1715203849169,-150.0,0.00027397,2]
[326658113,1715203849178,-150.0,0.000274,5]
[326658114,1715203849187,-157.050906,0.00027448,12]
[326658115,1715203849196,-154.88210903,0.00027483,2]
[326658116,1715203849206,-152.82732479,0.00027524,2]
[326658117,1715203849216,-1105.33187049,0.00027574,2]
[326658118,1715203849226,-2565.91500071,0.00027611,2]
[326658119,1715203849235,-302.0,0.00027647,4]
[326658120,1715203849244,-166.91407038,0.00027724,2]
[326658121,1715203849255,-157.050906,0.00027748,14]
[326658122,1715203849264,-771.32,0.00027775,2]
[326658123,1715203849273,-2100.0,0.00027776,2]
[326658124,1715203849284,-153.10102605,0.00027845,2]
[326658125,1715203849293,-885.17468719,0.00027845,2]
[326658126,1715203849303,-150.0,0.000279,5]
[326658127,1715203849312,-10266.47260772,0.00027944,2]
[326658128,1715203849321,-167.36716535,0.00027944,2]
[326658129,1715203849331,-9632.27,0.00027945,2]
[326658130,1715203849340,-500.0,0.00027945,5]
[326658131,1715203849349,-500.0,0.00027945,5]
[326658132,1715203849358,-156.17,0.00027945,5]
[326658133,1715203849368,-500.0,0.00027945,5]
[326658134,1715203849377,-500.0,0.00027945,5]
[326658135,1715203849387,-2200.45,0.00027945,5]
[326658136,1715203849396,-284.01400057,0.00027945,5]
[326658137,1715203849405,-507.11,0.00027945,5]
[326658138,1715203849414,-1895.17,0.00027945,5]
[326658139,1715203849423,-500.0,0.00027945,5]
[326658141,1715203849433,-2365.2,0.00027945,5]
[326658142,1715203849442,-500.0,0.00027945,5]
[326658144,1715203849452,-500.0,0.00027945,5]
[326658145,1715203849461,-500.0,0.00027945,5]
[326658147,1715203849470,-516.16,0.00027945,5]
[326658149,1715203849479,-500.0,0.00027945,5]
[326658151,1715203849489,-1865.0,0.00027945,5]
[326658153,1715203849498,-500.0,0.00027945,5]
[326658155,1715203849508,-500.0,0.00027945,5]
[326658157,1715203849518,-500.0,0.00027945,5]
[326658158,1715203849528,-1541.25,0.00027945,5]
[326658160,1715203849537,-500.0,0.00027945,5]
[326658161,1715203849550,-3187.9,0.00027945,5]
[326658163,1715203849559,-500.0,0.00027945,5]
[326658165,1715203849569,-500.0,0.00027945,5]
[326658167,1715203849578,-500.0,0.00027945,5]
[326658169,1715203849587,-500.0,0.00027945,5]
[326658171,1715203849597,-500.0,0.00027945,5]
[326658172,1715203849606,-500.0,0.00027945,5]
[326658173,1715203849615,-500.0,0.00027945,5]
[326658174,1715203849624,-500.0,0.00027945,5]
[326658175,1715203849634,-500.0,0.00027945,5]
[326658176,1715203849644,-500.0,0.00027945,5]
[326658177,1715203849654,-500.0,0.00027945,5]
[326658178,1715203849664,-500.0,0.00027945,5]
[326658179,1715203849673,-500.0,0.00027945,5]
[326658180,1715203849682,-500.0,0.00027945,5]
[326658181,1715203849691,-500.0,0.00027945,5]
[326658182,1715203849701,-500.0,0.00027945,5]
[326658183,1715203849711,-1292.76,0.00027945,5]
[326658184,1715203849720,-500.0,0.00027945,5]
[326658185,1715203849729,-500.0,0.00027945,2]
[326658186,1715203849739,-500.0,0.00027945,5]
[326658187,1715203849749,-500.0,0.00027945,5]
[326658189,1715203849759,-500.0,0.00027945,5]
[326658191,1715203849773,-500.0,0.00027945,5]
[326658193,1715203849783,-500.0,0.00027945,5]
[326658195,1715203849792,-426.03,0.00027945,5]
[326658196,1715203849804,-275.94,0.00027945,5]
[326658198,1715203849815,-500.0,0.00027945,5]
[326658200,1715203849824,-806.81,0.00027945,5]
[326658202,1715203849833,-1631.76,0.00027945,5]
[326658204,1715203849844,-198.65,0.00027945,5]
[326658206,1715203849858,-500.0,0.00027945,5]
[326658209,1715203849870,-500.0,0.00027945,5]
[326658211,1715203849880,-500.0,0.00027945,5]
[326658213,1715203849890,-161.77,0.00027945,5]
[326658215,1715203849900,-500.0,0.00027945,5]
[326658216,1715203849909,-512.16,0.00027945,5]
[326658218,1715203849918,-500.0,0.00027945,5]
[326658220,1715203849927,-591.98,0.00027945,5]
[326658222,1715203849937,-558.14,0.00027945,5]
[326658224,1715203849947,-500.0,0.00027945,5]
[326658226,1715203849956,-500.0,0.00027945,5]
[326658228,1715203849965,-578.73,0.00027945,5]
[326658230,1715203849975,-1520.86,0.00027945,5]
[326658232,1715203849985,-500.0,0.00027945,5]
[326658234,1715203849995,-1381.31,0.00027945,5]
[326658236,1715203850009,-500.0,0.00027945,5]
[326658238,1715203850019,-500.0,0.00027945,5]
[326658240,1715203850028,-500.0,0.00027945,5]
[326658242,1715203850038,-470.44,0.00027945,5]
[326658244,1715203850050,-500.0,0.00027945,5]
[326658246,1715203850060,-500.0,0.00027945,5]
[326658248,1715203850069,-1761.26,0.00027945,5]
[326658250,1715203850079,-500.0,0.00027945,5]
[326658252,1715203850088,-500.0,0.00027945,5]
[326658254,1715203850097,-806.21,0.00027945,5]
[326658256,1715203850107,-417.39,0.00027945,5]
[326658258,1715203850117,-1652.92,0.00027945,5]
[326658260,1715203850126,-1415.55,0.00027945,5]
[326658262,1715203850136,-500.0,0.00027945,5]
[326658264,1715203850145,-868.67,0.00027945,5]
[326658266,1715203850155,-1336.54,0.00027945,5]
[326658268,1715203850164,-500.0,0.00027945,5]
[326658270,1715203850174,-500.0,0.00027945,5]
[326658272,1715203850184,-693.71,0.00027945,5]
[326658274,1715203850193,-500.0,0.00027945,5]
[326658276,1715203850203,-500.0,0.00027945,5]
[326658278,1715203850212,-500.0,0.00027945,5]
[326658280,1715203850222,-500.0,0.00027945,5]
[326658282,1715203850232,-500.0,0.00027945,5]
[326658284,1715203850241,-500.0,0.00027945,5]
[326658286,1715203850252,-506.82478772,0.00027945,5]
[326658288,1715203850261,-500.0,0.00027945,5]
[326658290,1715203850270,-500.0,0.00027945,5]
[326658292,1715203850280,-500.0,0.00027945,5]
[326658294,1715203850289,-500.0,0.00027945,5]
[326658296,1715203850299,-500.0,0.00027945,5]
[326658298,1715203850307,-500.0,0.00027945,5]
[326658300,1715203850317,-611.92,0.00027945,5]
[326658302,1715203850326,-500.0,0.00027945,5]
[326658304,1715203850335,-500.0,0.00027945,5]
[326658306,1715203850344,-500.0,0.00027945,5]
[326658308,1715203850353,-500.0,0.00027945,5]
[326658310,1715203850362,-500.0,0.00027945,5]
[326658312,1715203850372,-500.0,0.00027945,5]
[326658314,1715203850381,-150.0,0.00027945,5]
[326658316,1715203850390,-1060.31,0.00027945,5]
[326658318,1715203850400,-500.0,0.00027945,5]
[326658320,1715203850411,-1982.77,0.00027945,5]
[326658322,1715203850420,-500.0,0.00027945,5]
[326658323,1715203850430,-500.0,0.00027945,5]
[326658325,1715203850439,-500.0,0.00027945,5]
[326658327,1715203850449,-500.0,0.00027945,5]
[326658330,1715203850458,-500.0,0.00027945,5]
[326658332,1715203850468,-500.0,0.00027945,5]
[326658334,1715203850477,-500.0,0.00027945,5]
[326658336,1715203850487,-312.23,0.00027945,5]
[326658338,1715203850496,-585.32,0.00027945,5]
[326658340,1715203850507,-290.55145708,0.00027945,5]
[326658341,1715203850516,-500.0,0.00027945,5]
[326658344,1715203850524,-500.0,0.00027945,5]
[326658345,1715203850533,-500.0,0.00027945,5]
[326658347,1715203850542,-500.0,0.00027945,5]
[326658349,1715203850552,-500.0,0.00027945,5]
[326658351,1715203850561,-500.0,0.00027945,5]
[326658354,1715203850570,-500.0,0.00027945,5]
[326658355,1715203850579,-500.0,0.00027945,5]
[326658358,1715203850588,-826.39177978,0.00027945,5]
[326658449,1715203851446,-392.88685001,0.00022736,2]
[326658451,1715203851458,-3054.35849837,0.00022736,2]
[326658453,1715203851470,-28614.81782127,0.00022736,2]
[326658456,1715203851482,-5737.93683035,0.00022736,2]
[326658458,1715203851491,-2596.35487236,0.00025736,2]
[326658460,1715203851504,-4316.5918931,0.00025736,2]
[326658503,1715203852702,-38.58423454,0.00025736,2]
[326658504,1715203852712,-720.14,0.00027397,2]
[326658505,1715203852722,-500.0,0.00027397,2]
[326658506,1715203852732,-216.25822022,0.00027945,5]
[326658507,1715203852742,-500.0,0.00027945,5]
[326658508,1715203852753,-293.2716284,0.00027945,5]
[326658509,1715203852765,-206.7283716,0.00027945,5]
[326658510,1715203852781,-2968.4,0.00027945,5]
[326658511,1715203852791,-500.0,0.00027945,5]
[326658512,1715203852991,-500.0,0.00027945,5]
[326658513,1715203853003,-2457.45,0.00027945,5]
[326658514,1715203853013,-500.0,0.00027945,5]
[326658515,1715203853022,-786.56,0.00027945,5]
[326658516,1715203853032,-500.0,0.00027945,5]
[326658517,1715203853042,-686.85,0.00027945,5]
[326658518,1715203853051,-500.0,0.00027945,5]
[326658519,1715203853061,-500.0,0.00027945,5]
[326658520,1715203853070,-500.0,0.00027945,5]
[326658521,1715203853080,-500.0,0.00027945,5]
[326658522,1715203853089,-508.25,0.00027945,5]
[326658523,1715203853099,-500.0,0.00027945,5]
[326658524,1715203853108,-548.38,0.00027945,5]
[326658525,1715203853117,-500.0,0.00027945,5]
[326658526,1715203853127,-710.7,0.00027945,5]
[326658527,1715203853137,-500.0,0.00027945,5]
[326658528,1715203853146,-500.0,0.00027945,5]
[326658529,1715203853156,-500.0,0.00027945,5]
[326658530,1715203853165,-2091.76,0.00027945,5]
[326658531,1715203853175,-500.0,0.00027945,5]
[326658532,1715203853184,-500.0,0.00027945,5]
[326658533,1715203853194,-709.87,0.00027945,5]
[326658534,1715203853203,-500.0,0.00027945,5]
[326658535,1715203853212,-500.0,0.00027945,5]
[326658536,1715203853221,-500.0,0.00027945,5]
[326658537,1715203853231,-500.0,0.00027945,5]
[326658538,1715203853240,-500.0,0.00027945,5]
[326658539,1715203853249,-500.0,0.00027945,5]
[326658540,1715203853260,-1413.54,0.00027945,5]
[326658541,1715203853270,-1883.5,0.00027945,5]
[326658542,1715203853280,-500.0,0.00027945,5]
[326658543,1715203853290,-8200.76,0.00027945,5]
[326658544,1715203853299,-500.0,0.00027945,5]
[326658545,1715203853309,-500.0,0.00027945,5]
[326658546,1715203853318,-628.08,0.00027945,5]
[326658547,1715203853328,-500.0,0.00027945,5]
[326658548,1715203853337,-511.64,0.00027945,5]
[326658549,1715203853347,-500.0,0.00027945,5]
[326658550,1715203853356,-500.0,0.00027945,5]
[326658551,1715203853366,-500.0,0.00027945,5]
[326658552,1715203853375,-500.0,0.00027945,5]
[326658553,1715203853384,-500.0,0.00027945,5]
[326658554,1715203853394,-500.0,0.00027945,5]
[326658555,1715203853404,-500.0,0.00027945,5]
[326658556,1715203853413,-500.0,0.00027945,5]
[326658557,1715203853423,-500.0,0.00027945,5]
[326658558,1715203853432,-500.0,0.00027945,5]
[326658559,1715203853442,-868.11,0.00027945,5]
[326658560,1715203853451,-537.89,0.00027945,5]
[326658561,1715203853460,-500.0,0.00027945,5]
[326658562,1715203853469,-609.46,0.00027945,5]
[326658563,1715203853478,-906.89,0.00027945,5]
[326658564,1715203853488,-500.0,0.00027945,5]
[326658565,1715203853497,-500.0,0.00027945,5]
[326658566,1715203853508,-7185.51,0.00027945,5]
[326658567,1715203853518,-500.0,0.00027945,5]
[326658568,1715203853529,-500.0,0.00027945,5]
[326658569,1715203853539,-500.0,0.00027945,5]
[326658570,1715203853549,-500.0,0.00027945,5]
[326658571,1715203853559,-500.0,0.00027945,5]
[326658572,1715203853568,-1654.0,0.00027945,5]
[326658573,1715203853577,-1267.96,0.00027945,5]
[326658574,1715203853587,-533.64,0.00027945,5]
[326658575,1715203853596,-847.41,0.00027945,5]
[326658576,1715203853605,-500.0,0.00027945,5]
[326658577,1715203853615,-222.96,0.00027945,5]
[326658578,1715203853624,-500.0,0.00027945,5]
[326658579,1715203853633,-500.0,0.00027945,5]
[326658580,1715203853643,-500.0,0.00027945,5]
[326658581,1715203853652,-500.0,0.00027945,5]
[326658582,1715203853662,-1494.66,0.00027945,5]
[326658583,1715203853671,-500.0,0.00027945,5]
[326658584,1715203853680,-580.72,0.00027945,5]
[326658585,1715203853690,-500.0,0.00027945,5]
[326658586,1715203853699,-3137.64,0.00027945,5]
[326658587,1715203853709,-500.0,0.00027945,5]
[326658588,1715203853718,-500.0,0.00027945,5]
[326658589,1715203853727,-500.0,0.00027945,5]
[326658590,1715203853737,-500.0,0.00027945,5]
[326658591,1715203853746,-500.0,0.00027945,5]
[326658592,1715203853756,-1438.29,0.00027945,5]
[326658593,1715203853766,-566.98,0.00027945,5]
[326658594,1715203853779,-500.0,0.00027945,5]
[326658595,1715203853789,-500.0,0.00027945,5]
[326658596,1715203853801,-500.0,0.00027945,5]
[326658597,1715203853810,-1633.85,0.00027945,5]
[326658598,1715203853822,-500.0,0.00027945,5]
[326658599,1715203853831,-500.0,0.00027945,5]
[326658600,1715203853841,-500.0,0.00027945,5]
[326658601,1715203853851,-500.0,0.00027945,5]
[326658602,1715203853862,-1333.5,0.00027945,5]
[326658603,1715203853872,-1236.15,0.00027945,5]
[326658604,1715203853882,-500.0,0.00027945,5]
[326658605,1715203853892,-4270.12,0.00027945,5]
[326658606,1715203853902,-768.65,0.00027945,5]
[326658607,1715203853912,-500.0,0.00027945,5]
[326658608,1715203853924,-500.0,0.00027945,5]
[326658609,1715203853934,-500.0,0.00027945,5]
[326658610,1715203853944,-521.98,0.00027945,5]
[326658611,1715203853953,-2357.85,0.00027945,5]
[326658612,1715203853962,-500.0,0.00027945,2]
[326658613,1715203853971,-500.0,0.00027945,5]
[326658614,1715203853981,-500.0,0.00027945,5]
[326658615,1715203853991,-2933.45,0.00027945,5]
[326658616,1715203854001,-634.41,0.00027945,5]
[326658617,1715203854011,-500.0,0.00027945,5]
[326658618,1715203854021,-500.0,0.00027945,5]
[326658619,1715203854030,-3285.2,0.00027945,5]
[326658620,1715203854040,-2762.11,0.00027945,5]